[Event "*** Qualifier 4: Titled Tuesday 3|2 Blitz"]
[Site "Chess.com"]
[Date "2017.04.25"]
[Round "10"]
[White "pastouche06"]
[Black "Marcus_Harvey"]
[Result "1-0"]
[WhiteElo "2344"]
[BlackElo "2491"]
[TimeControl "180+2"]
[EndTime "15:11:38 PDT"]
[Termination "pastouche06 won by resignation"]

1. c4 {[%clk 0:03:02]} 1... e6 {[%clk 0:03:01.3]} 2. Nc3 {[%clk 0:03:02.5]} 2...
f5 {[%clk 0:03:02.5]} 3. d3 {[%clk 0:02:58.3]} 3... Nf6 {[%clk 0:03:02.8]} 4. g3
{[%clk 0:02:58.7]} 4... Bb4 {[%clk 0:03:01.2]} 5. Bg2 {[%clk 0:02:56.4]} 5...
O-O {[%clk 0:03:02.3]} 6. Nf3 {[%clk 0:02:55.3]} 6... d6 {[%clk 0:02:58.1]} 7.
O-O {[%clk 0:02:53.5]} 7... Bxc3 {[%clk 0:02:58.4]} 8. bxc3 {[%clk 0:02:53.8]}
8... e5 {[%clk 0:02:50.3]} 9. d4 {[%clk 0:02:49.8]} 9... e4 {[%clk 0:02:47.9]}
10. Ng5 {[%clk 0:02:49.8]} 10... c5 {[%clk 0:02:46.2]} 11. f3 {[%clk 0:02:45.4]}
11... h6 {[%clk 0:02:43.7]} 12. Nh3 {[%clk 0:02:45.2]} 12... g5 {[%clk
0:02:38.2]} 13. Nf2 {[%clk 0:02:38.1]} 13... Qe7 {[%clk 0:02:30.3]} 14. Qc2
{[%clk 0:02:30.9]} 14... e3 {[%clk 0:02:23.4]} 15. Nd3 {[%clk 0:02:26.8]} 15...
Nc6 {[%clk 0:02:20.1]} 16. f4 {[%clk 0:02:01.4]} 16... cxd4 {[%clk 0:02:16.3]}
17. fxg5 {[%clk 0:02:02.1]} 17... hxg5 {[%clk 0:02:15.2]} 18. Bb2 {[%clk
0:02:03.7]} 18... dxc3 {[%clk 0:02:02.9]} 19. Qxc3 {[%clk 0:02:05.6]} 19... Kh7
{[%clk 0:01:57.3]} 20. Rad1 {[%clk 0:01:55.5]} 20... Bd7 {[%clk 0:01:54.2]} 21.
Nb4 {[%clk 0:01:46.5]} 21... Ne4 {[%clk 0:01:51.5]} 22. Bxe4 {[%clk 0:01:44.1]}
22... fxe4 {[%clk 0:01:43.6]} 23. Nd5 {[%clk 0:01:43.5]} 23... Qe5 {[%clk
0:01:35.5]} 24. Nf6+ {[%clk 0:01:20.9]} 24... Rxf6 {[%clk 0:01:12.2]} 25. Rxf6
{[%clk 0:01:22.8]} 25... Qxc3 {[%clk 0:01:05.9]} 26. Bxc3 {[%clk 0:01:24.7]}
26... Rd8 {[%clk 0:00:17.1]} 27. Rdxd6 {[%clk 0:01:23.2]} 27... Be8 {[%clk
0:00:16.9]} 28. Rxd8 {[%clk 0:01:17.1]} 28... Nxd8 {[%clk 0:00:18.1]} 29. Rf8
{[%clk 0:01:18.7]} 1-0

[Event "*** Qualifier 4: Titled Tuesday 3|2 Blitz"]
[Site "Chess.com"]
[Date "2017.04.25"]
[Round "10"]
[White "swayamsm"]
[Black "biostatistician"]
[Result "1-0"]
[WhiteElo "2441"]
[BlackElo "2443"]
[TimeControl "180+2"]
[EndTime "15:11:38 PDT"]
[Termination "swayamsm won on time"]

1. d4 {[%clk 0:03:02]} 1... Nf6 {[%clk 0:03:00.1]} 2. c4 {[%clk 0:03:03.1]} 2...
g6 {[%clk 0:03:01.5]} 3. Nc3 {[%clk 0:03:04.6]} 3... Bg7 {[%clk 0:03:03.4]} 4.
e4 {[%clk 0:03:05.9]} 4... d6 {[%clk 0:03:04.9]} 5. Be2 {[%clk 0:03:07.4]} 5...
O-O {[%clk 0:03:06.8]} 6. Be3 {[%clk 0:03:08.7]} 6... Nbd7 {[%clk 0:03:00.3]} 7.
g4 {[%clk 0:03:07.8]} 7... c5 {[%clk 0:02:56.1]} 8. d5 {[%clk 0:03:05.7]} 8...
a6 {[%clk 0:02:53.9]} 9. g5 {[%clk 0:03:06.3]} 9... Ne8 {[%clk 0:02:54]} 10. h4
{[%clk 0:03:06.9]} 10... b5 {[%clk 0:02:54]} 11. cxb5 {[%clk 0:02:54.6]} 11...
axb5 {[%clk 0:02:55.9]} 12. Bxb5 {[%clk 0:02:55.7]} 12... Ba6 {[%clk 0:02:55.3]}
13. Bxa6 {[%clk 0:02:55]} 13... Rxa6 {[%clk 0:02:57.2]} 14. Qe2 {[%clk
0:02:56.2]} 14... Qa5 {[%clk 0:02:54.5]} 15. Kf1 {[%clk 0:02:42.1]} 15... Rb6
{[%clk 0:02:41.4]} 16. Kg2 {[%clk 0:02:24]} 16... Nc7 {[%clk 0:02:11.7]} 17. Nf3
{[%clk 0:01:54]} 17... Rfb8 {[%clk 0:02:10.9]} 18. Nd1 {[%clk 0:01:54.7]} 18...
Bxb2 {[%clk 0:02:03.5]} 19. Nxb2 {[%clk 0:01:56.6]} 19... Rxb2 {[%clk
0:02:04.8]} 20. Bd2 {[%clk 0:01:52.2]} 20... Qa4 {[%clk 0:01:50.5]} 21. h5
{[%clk 0:01:47.6]} 21... Ne5 {[%clk 0:00:59.4]} 22. hxg6 {[%clk 0:01:39.4]}
22... fxg6 {[%clk 0:00:57]} 23. Nxe5 {[%clk 0:01:33.7]} 23... dxe5 {[%clk
0:00:58.9]} 24. Qe3 {[%clk 0:01:31.9]} 24... Qe8 {[%clk 0:00:42.5]} 25. Bc3
{[%clk 0:01:30.2]} 25... Rc2 {[%clk 0:00:36.5]} 26. Bxe5 {[%clk 0:01:31.1]}
26... Rc8 {[%clk 0:00:33.7]} 27. Rxh7 {[%clk 0:01:27.5]} 1-0

[Event "*** Qualifier 4: Titled Tuesday 3|2 Blitz"]
[Site "Chess.com"]
[Date "2017.04.25"]
[Round "10"]
[White "jcgs1030"]
[Black "DiogenesSinopeus"]
[Result "0-1"]
[WhiteElo "2257"]
[BlackElo "2260"]
[TimeControl "180+2"]
[EndTime "15:11:45 PDT"]
[Termination "DiogenesSinopeus won by resignation"]

1. e4 {[%clk 0:02:52.4]} 1... e5 {[%clk 0:03:01.3]} 2. Nf3 {[%clk 0:02:51.1]}
2... Nc6 {[%clk 0:03:02.5]} 3. Bb5 {[%clk 0:02:50.4]} 3... a6 {[%clk 0:03:03.8]}
4. Ba4 {[%clk 0:02:51]} 4... d6 {[%clk 0:03:05.7]} 5. d4 {[%clk 0:02:51.3]} 5...
b5 {[%clk 0:03:06.2]} 6. Bb3 {[%clk 0:02:50.5]} 6... Nxd4 {[%clk 0:03:07.6]} 7.
Nxd4 {[%clk 0:02:51.7]} 7... exd4 {[%clk 0:03:09.5]} 8. a4 {[%clk 0:02:51.8]}
8... Bd7 {[%clk 0:02:59.5]} 9. axb5 {[%clk 0:02:50.6]} 9... axb5 {[%clk
0:02:59]} 10. Rxa8 {[%clk 0:02:51.6]} 10... Qxa8 {[%clk 0:03:00.8]} 11. Qxd4
{[%clk 0:02:52]} 11... Nf6 {[%clk 0:02:55]} 12. Qe3 {[%clk 0:02:37.2]} 12...
Qxe4 {[%clk 0:02:45.7]} 13. O-O {[%clk 0:02:36.5]} 13... Qxe3 {[%clk 0:02:40.7]}
14. Bxe3 {[%clk 0:02:38.4]} 14... Be7 {[%clk 0:02:42.1]} 15. Re1 {[%clk
0:02:38.6]} 15... O-O {[%clk 0:02:26.1]} 16. Nc3 {[%clk 0:02:37]} 16... b4
{[%clk 0:02:13.2]} 17. Bd4 {[%clk 0:02:32.8]} 17... Bd8 {[%clk 0:01:54.2]} 18.
Bxf6 {[%clk 0:02:21.2]} 18... Bxf6 {[%clk 0:01:55]} 19. Nd5 {[%clk 0:02:22.3]}
19... Bxb2 {[%clk 0:01:45.9]} 20. Nxc7 {[%clk 0:02:16.8]} 20... Rc8 {[%clk
0:01:20.1]} 21. Re7 {[%clk 0:02:15.8]} 21... Rxc7 {[%clk 0:00:33.7]} 22. Rxf7
{[%clk 0:02:16]} 22... d5 {[%clk 0:00:07.6]} 23. Bxd5 {[%clk 0:02:11.5]} 23...
Be6 {[%clk 0:00:09.1]} 24. Rxc7 {[%clk 0:02:04.8]} 24... Bxd5 {[%clk 0:00:10]}
25. Rc5 {[%clk 0:02:03.7]} 25... Be6 {[%clk 0:00:05.8]} 26. h3 {[%clk
0:01:56.9]} 26... Bc3 {[%clk 0:00:05.8]} 27. h4 {[%clk 0:01:53]} 27... Ba2
{[%clk 0:00:04.8]} 28. Kf1 {[%clk 0:01:42.9]} 28... Bb1 {[%clk 0:00:06.1]} 29.
Ke2 {[%clk 0:01:39.8]} 29... Bxc2 {[%clk 0:00:07.5]} 30. h5 {[%clk 0:01:40.2]}
30... b3 {[%clk 0:00:03.9]} 31. Rxc3 {[%clk 0:01:41.1]} 31... b2 {[%clk
0:00:05.4]} 32. Rc8+ {[%clk 0:01:42.9]} 32... Kf7 {[%clk 0:00:06.1]} 33. Rxc2
{[%clk 0:01:43.5]} 33... b1=Q {[%clk 0:00:06.9]} 34. Rc7+ {[%clk 0:01:44.6]}
34... Kf6 {[%clk 0:00:07.7]} 35. Rc6+ {[%clk 0:01:46]} 35... Ke7 {[%clk
0:00:09]} 36. Rc7+ {[%clk 0:01:46.6]} 36... Kd6 {[%clk 0:00:09.5]} 37. Rxg7
{[%clk 0:01:47.3]} 37... Qb2+ {[%clk 0:00:10.8]} 0-1

[Event "*** Qualifier 4: Titled Tuesday 3|2 Blitz"]
[Site "Chess.com"]
[Date "2017.04.25"]
[Round "10"]
[White "Blitzstream"]
[Black "gumersindo"]
[Result "1-0"]
[WhiteElo "2448"]
[BlackElo "2274"]
[TimeControl "180+2"]
[EndTime "15:12:07 PDT"]
[Termination "Blitzstream won by checkmate"]

1. g3 {[%clk 0:03:02]} 1... d5 {[%clk 0:02:58.1]} 2. Bg2 {[%clk 0:03:03.9]} 2...
Nf6 {[%clk 0:02:58.9]} 3. b3 {[%clk 0:03:05.5]} 3... e6 {[%clk 0:02:57.5]} 4.
Bb2 {[%clk 0:03:07.4]} 4... Be7 {[%clk 0:02:59]} 5. d3 {[%clk 0:03:09]} 5... O-O
{[%clk 0:03:00.4]} 6. Nd2 {[%clk 0:03:10.9]} 6... b6 {[%clk 0:03:00.2]} 7. e3
{[%clk 0:03:12.8]} 7... Bb7 {[%clk 0:03:01.7]} 8. Ne2 {[%clk 0:03:14.5]} 8... c5
{[%clk 0:03:03]} 9. O-O {[%clk 0:03:15.7]} 9... Nc6 {[%clk 0:03:04.6]} 10. f4
{[%clk 0:03:17]} 10... Qc7 {[%clk 0:02:57.6]} 11. h3 {[%clk 0:03:17.9]} 11... a5
{[%clk 0:02:54.7]} 12. Nf3 {[%clk 0:03:17.7]} 12... a4 {[%clk 0:02:54.7]} 13. a3
{[%clk 0:03:14.5]} 13... axb3 {[%clk 0:02:51.6]} 14. cxb3 {[%clk 0:03:16.4]}
14... Nd7 {[%clk 0:02:37.5]} 15. g4 {[%clk 0:03:15.6]} 15... Bf6 {[%clk
0:02:35.9]} 16. d4 {[%clk 0:03:02.3]} 16... Ba6 {[%clk 0:02:30.8]} 17. g5 {[%clk
0:03:00.8]} 17... Be7 {[%clk 0:02:30.8]} 18. Rf2 {[%clk 0:02:56.7]} 18... c4
{[%clk 0:02:28.8]} 19. b4 {[%clk 0:02:47.3]} 19... b5 {[%clk 0:02:25.8]} 20. h4
{[%clk 0:02:44.3]} 20... Nb6 {[%clk 0:02:26.6]} 21. Nc3 {[%clk 0:02:44.5]} 21...
Na7 {[%clk 0:01:12.5]} 22. Bh3 {[%clk 0:02:44.4]} 22... Bc8 {[%clk 0:01:11.5]}
23. Rg2 {[%clk 0:02:38.3]} 23... Bd7 {[%clk 0:01:11.7]} 24. h5 {[%clk
0:02:37.4]} 24... Na4 {[%clk 0:01:12.1]} 25. Ne5 {[%clk 0:02:24.5]} 25... Nxc3
{[%clk 0:00:52.8]} 26. Bxc3 {[%clk 0:02:25.1]} 26... Nc8 {[%clk 0:00:53.9]} 27.
g6 {[%clk 0:02:09.2]} 27... fxg6 {[%clk 0:00:50.8]} 28. hxg6 {[%clk 0:02:10.2]}
28... h6 {[%clk 0:00:51.7]} 29. Qh5 {[%clk 0:02:10]} 29... Nb6 {[%clk
0:00:49.5]} 30. Nf7 {[%clk 0:01:56.3]} 30... Bf6 {[%clk 0:00:34.6]} 31. Nxh6+
{[%clk 0:01:52.3]} 31... gxh6 {[%clk 0:00:35.8]} 32. Qxh6 {[%clk 0:01:54.2]}
32... Bc8 {[%clk 0:00:37]} 33. g7 {[%clk 0:01:46.8]} 33... Bxg7 {[%clk
0:00:36.4]} 34. Kh2 {[%clk 0:01:45.2]} 34... Rf7 {[%clk 0:00:22.9]} 35. Rag1
{[%clk 0:01:41.1]} 35... Rxa3 {[%clk 0:00:21.1]} 36. Be1 {[%clk 0:01:35.4]}
36... Rxe3 {[%clk 0:00:21.4]} 37. Bh4 {[%clk 0:01:29.7]} 37... Qxf4+ {[%clk
0:00:14]} 38. Qxf4 {[%clk 0:01:30.5]} 38... Rxf4 {[%clk 0:00:15.5]} 39. Rxg7+
{[%clk 0:01:32.1]} 39... Kf8 {[%clk 0:00:16.7]} 40. Rg8+ {[%clk 0:01:32.2]}
40... Kf7 {[%clk 0:00:15.6]} 41. R1g7# {[%clk 0:01:34.1]} 1-0

[Event "*** Qualifier 4: Titled Tuesday 3|2 Blitz"]
[Site "Chess.com"]
[Date "2017.04.25"]
[Round "10"]
[White "chesstatour"]
[Black "ABDELAZEEZ-M"]
[Result "0-1"]
[WhiteElo "1911"]
[BlackElo "2191"]
[TimeControl "180+2"]
[EndTime "15:12:16 PDT"]
[Termination "ABDELAZEEZ-M won on time"]

1. e4 {[%clk 0:03:02]} 1... c5 {[%clk 0:02:58.2]} 2. Nf3 {[%clk 0:03:02]} 2...
Nc6 {[%clk 0:02:58.7]} 3. d4 {[%clk 0:03:03.2]} 3... cxd4 {[%clk 0:03:00]} 4.
Nxd4 {[%clk 0:03:05.1]} 4... g6 {[%clk 0:03:00.8]} 5. c4 {[%clk 0:03:05]} 5...
Bg7 {[%clk 0:03:01.8]} 6. Be3 {[%clk 0:03:06.6]} 6... Nf6 {[%clk 0:03:02.9]} 7.
Nc3 {[%clk 0:03:04.5]} 7... Ng4 {[%clk 0:03:03.1]} 8. Qxg4 {[%clk 0:02:49]} 8...
Nxd4 {[%clk 0:03:03.7]} 9. Qd1 {[%clk 0:02:48.6]} 9... Ne6 {[%clk 0:03:04.8]}
10. f3 {[%clk 0:02:48.6]} 10... Bxc3+ {[%clk 0:03:04.8]} 11. bxc3 {[%clk
0:02:49.2]} 11... Qa5 {[%clk 0:03:05.4]} 12. Qb3 {[%clk 0:02:34.7]} 12... b6
{[%clk 0:03:05.8]} 13. Be2 {[%clk 0:02:20.1]} 13... Bb7 {[%clk 0:03:05.9]} 14.
O-O {[%clk 0:02:19.2]} 14... g5 {[%clk 0:02:54.1]} 15. Rfd1 {[%clk 0:01:08.4]}
15... Nf4 {[%clk 0:02:52.1]} 16. Bf1 {[%clk 0:00:54.3]} 16... Rc8 {[%clk
0:02:51.9]} 17. Qb4 {[%clk 0:00:42.3]} 17... Qxb4 {[%clk 0:02:23.9]} 18. cxb4
{[%clk 0:00:42]} 18... d6 {[%clk 0:02:12.5]} 19. a4 {[%clk 0:00:40.9]} 19... Ne6
{[%clk 0:02:12.2]} 20. a5 {[%clk 0:00:40.3]} 20... bxa5 {[%clk 0:02:01.4]} 21.
Rxa5 {[%clk 0:00:39.7]} 21... a6 {[%clk 0:02:01.8]} 22. Bxg5 {[%clk 0:00:27.2]}
22... Rg8 {[%clk 0:02:01.1]} 23. Be3 {[%clk 0:00:25.6]} 23... f6 {[%clk
0:01:58.9]} 24. c5 {[%clk 0:00:11]} 24... dxc5 {[%clk 0:01:53.3]} 25. Bc4 {[%clk
0:00:11.2]} 25... Kf7 {[%clk 0:01:51.1]} 26. bxc5 {[%clk 0:00:12.3]} 26... Rgd8
{[%clk 0:01:44.2]} 27. Bd5 {[%clk 0:00:10.7]} 27... Bxd5 {[%clk 0:01:36.6]} 28.
exd5 {[%clk 0:00:11.4]} 28... Nc7 {[%clk 0:01:37.8]} 29. d6 {[%clk 0:00:11]}
29... exd6 {[%clk 0:01:38.8]} 30. cxd6 {[%clk 0:00:09.8]} 30... Ke6 {[%clk
0:01:36.3]} 31. Bf4 {[%clk 0:00:05.1]} 31... Nd5 {[%clk 0:01:35.6]} 32. Re1+
{[%clk 0:00:05.4]} 32... Kf5 {[%clk 0:01:35.1]} 33. Rxd5+ {[%clk 0:00:05.3]}
33... Kxf4 {[%clk 0:01:36.2]} 34. Re2 {[%clk 0:00:04.5]} 34... f5 {[%clk
0:01:32.6]} 35. Kf2 {[%clk 0:00:03.7]} 35... Rc6 {[%clk 0:01:30.5]} 0-1

[Event "*** Qualifier 4: Titled Tuesday 3|2 Blitz"]
[Site "Chess.com"]
[Date "2017.04.25"]
[Round "10"]
[White "GM_Huschenbeth"]
[Black "SergeiAza"]
[Result "0-1"]
[WhiteElo "2378"]
[BlackElo "2684"]
[TimeControl "180+2"]
[EndTime "15:12:33 PDT"]
[Termination "SergeiAza won by resignation"]

1. e4 {[%clk 0:03:02]} 1... c5 {[%clk 0:03:00.8]} 2. Nf3 {[%clk 0:03:03.1]} 2...
Nc6 {[%clk 0:03:01.5]} 3. d4 {[%clk 0:03:04.6]} 3... cxd4 {[%clk 0:03:02.1]} 4.
Nxd4 {[%clk 0:03:06.5]} 4... Qb6 {[%clk 0:03:03.5]} 5. Nb3 {[%clk 0:03:06.8]}
5... Nf6 {[%clk 0:03:05.1]} 6. Nc3 {[%clk 0:03:08.2]} 6... e6 {[%clk 0:03:06.7]}
7. Qe2 {[%clk 0:03:09.4]} 7... Bb4 {[%clk 0:03:05.4]} 8. Bd2 {[%clk 0:03:10.6]}
8... O-O {[%clk 0:03:04.7]} 9. a3 {[%clk 0:03:12.1]} 9... Be7 {[%clk 0:03:03.1]}
10. O-O-O {[%clk 0:03:12.4]} 10... d5 {[%clk 0:03:04]} 11. e5 {[%clk 0:03:13.2]}
11... Nd7 {[%clk 0:03:02.4]} 12. f4 {[%clk 0:03:14.8]} 12... Nc5 {[%clk
0:02:56.7]} 13. Nxc5 {[%clk 0:03:12.2]} 13... Qxc5 {[%clk 0:02:57.3]} 14. Qh5
{[%clk 0:03:13.5]} 14... b5 {[%clk 0:02:24.3]} 15. Bd3 {[%clk 0:02:01.7]} 15...
g6 {[%clk 0:02:22.1]} 16. Qh6 {[%clk 0:02:03.2]} 16... b4 {[%clk 0:02:15.6]} 17.
Na4 {[%clk 0:02:04.5]} 17... Qd4 {[%clk 0:02:00]} 18. axb4 {[%clk 0:01:34.5]}
18... Nxb4 {[%clk 0:01:48.7]} 19. Bxb4 {[%clk 0:01:16.9]} 19... Qxb4 {[%clk
0:01:15.9]} 20. b3 {[%clk 0:00:57.2]} 20... Bd7 {[%clk 0:01:05.8]} 21. h4 {[%clk
0:00:57.8]} 21... Rfc8 {[%clk 0:00:45.5]} 22. h5 {[%clk 0:00:39.3]} 22... Bf8
{[%clk 0:00:45.3]} 23. Qg5 {[%clk 0:00:40.6]} 23... h6 {[%clk 0:00:24.2]} 24.
Qg3 {[%clk 0:00:41.3]} 24... g5 {[%clk 0:00:25.1]} 25. fxg5 {[%clk 0:00:37.8]}
25... Bxa4 {[%clk 0:00:23.5]} 26. bxa4 {[%clk 0:00:33.4]} 26... Qc3 {[%clk
0:00:16]} 27. gxh6+ {[%clk 0:00:30.4]} 27... Kh8 {[%clk 0:00:16.2]} 28. Qg5
{[%clk 0:00:31.8]} 28... Ba3+ {[%clk 0:00:15.6]} 0-1

[Event "*** Qualifier 4: Titled Tuesday 3|2 Blitz"]
[Site "Chess.com"]
[Date "2017.04.25"]
[Round "10"]
[White "VMikhalevski"]
[Black "woodhy"]
[Result "0-1"]
[WhiteElo "2541"]
[BlackElo "2426"]
[TimeControl "180+2"]
[EndTime "15:12:43 PDT"]
[Termination "woodhy won on time"]

1. d4 {[%clk 0:03:02]} 1... e6 {[%clk 0:03:02]} 2. c4 {[%clk 0:03:00.8]} 2... b6
{[%clk 0:03:02.5]} 3. e4 {[%clk 0:03:00.8]} 3... Bb7 {[%clk 0:03:02.9]} 4. Qc2
{[%clk 0:03:01.6]} 4... Bb4+ {[%clk 0:03:01.4]} 5. Bd2 {[%clk 0:03:01.9]} 5...
Bxd2+ {[%clk 0:03:00.5]} 6. Nxd2 {[%clk 0:03:02.2]} 6... d6 {[%clk 0:02:59.6]}
7. Ngf3 {[%clk 0:03:01.2]} 7... Nd7 {[%clk 0:02:58.7]} 8. Be2 {[%clk 0:03:00.4]}
8... Qe7 {[%clk 0:02:59.8]} 9. O-O {[%clk 0:03:00.4]} 9... e5 {[%clk 0:03:00.9]}
10. b4 {[%clk 0:02:57.2]} 10... Ngf6 {[%clk 0:02:57.5]} 11. Rfe1 {[%clk
0:02:55]} 11... O-O {[%clk 0:02:53.8]} 12. Bf1 {[%clk 0:02:54.7]} 12... Rfe8
{[%clk 0:02:41.5]} 13. a4 {[%clk 0:02:50.9]} 13... a5 {[%clk 0:02:31.5]} 14. b5
{[%clk 0:02:50.1]} 14... exd4 {[%clk 0:02:26.8]} 15. Nxd4 {[%clk 0:02:49.3]}
15... Nc5 {[%clk 0:02:24.7]} 16. Nf5 {[%clk 0:02:38.8]} 16... Qe5 {[%clk
0:02:03.5]} 17. f3 {[%clk 0:02:34.9]} 17... g6 {[%clk 0:01:45.4]} 18. Ne3 {[%clk
0:02:33.8]} 18... Qd4 {[%clk 0:01:42.3]} 19. Rad1 {[%clk 0:02:31.3]} 19... Qe5
{[%clk 0:01:22.9]} 20. Nb1 {[%clk 0:01:15.8]} 20... Nh5 {[%clk 0:01:15.1]} 21.
Nc3 {[%clk 0:01:15.3]} 21... Nf4 {[%clk 0:01:12.9]} 22. g3 {[%clk 0:01:15.6]}
22... Nfe6 {[%clk 0:01:13.3]} 23. Qd2 {[%clk 0:01:14.3]} 23... Nb3 {[%clk
0:01:12.8]} 24. Qb2 {[%clk 0:01:12.4]} 24... Nbd4 {[%clk 0:01:11.6]} 25. Bg2
{[%clk 0:01:12.8]} 25... Qc5 {[%clk 0:01:04.8]} 26. Kh1 {[%clk 0:01:12.3]} 26...
Qb4 {[%clk 0:01:01.9]} 27. Qa1 {[%clk 0:01:12.9]} 27... Nb3 {[%clk 0:00:56.6]}
28. Qb2 {[%clk 0:01:09.4]} 28... Nbc5 {[%clk 0:00:57]} 29. Qc1 {[%clk
0:01:04.8]} 29... Nxa4 {[%clk 0:00:55.2]} 30. Ncd5 {[%clk 0:01:04.7]} 30... Qb2
{[%clk 0:00:54.8]} 0-1

[Event "*** Qualifier 4: Titled Tuesday 3|2 Blitz"]
[Site "Chess.com"]
[Date "2017.04.25"]
[Round "10"]
[White "jcibarra"]
[Black "Aygehovit1992"]
[Result "0-1"]
[WhiteElo "2662"]
[BlackElo "2503"]
[TimeControl "180+2"]
[EndTime "15:12:46 PDT"]
[Termination "Aygehovit1992 won by checkmate"]

1. e4 {[%clk 0:03:01.6]} 1... c5 {[%clk 0:03:00.3]} 2. Nf3 {[%clk 0:03:02.3]}
2... d6 {[%clk 0:03:01.7]} 3. d4 {[%clk 0:03:03.1]} 3... cxd4 {[%clk 0:03:03.3]}
4. Nxd4 {[%clk 0:03:05]} 4... Nf6 {[%clk 0:03:04.9]} 5. Nc3 {[%clk 0:03:06.5]}
5... Nc6 {[%clk 0:03:06.6]} 6. Bg5 {[%clk 0:03:07.1]} 6... e6 {[%clk 0:03:06.7]}
7. Qd2 {[%clk 0:03:08]} 7... a6 {[%clk 0:03:08.1]} 8. O-O-O {[%clk 0:03:08.9]}
8... Bd7 {[%clk 0:03:09.5]} 9. f3 {[%clk 0:03:10]} 9... Qc7 {[%clk 0:03:07.9]}
10. Kb1 {[%clk 0:03:09.7]} 10... Rc8 {[%clk 0:03:05.9]} 11. h4 {[%clk
0:03:05.4]} 11... Be7 {[%clk 0:03:06.2]} 12. g4 {[%clk 0:03:05.3]} 12... Nxd4
{[%clk 0:03:05.7]} 13. Qxd4 {[%clk 0:03:06]} 13... b5 {[%clk 0:03:07.4]} 14. Qd2
{[%clk 0:02:58.6]} 14... b4 {[%clk 0:03:07]} 15. Ne2 {[%clk 0:02:58.5]} 15... d5
{[%clk 0:03:02]} 16. e5 {[%clk 0:02:52.9]} 16... Ng8 {[%clk 0:02:58.4]} 17. Nd4
{[%clk 0:02:40.5]} 17... Qb7 {[%clk 0:02:46.9]} 18. h5 {[%clk 0:02:23.4]} 18...
a5 {[%clk 0:02:36.9]} 19. Bxe7 {[%clk 0:02:18.7]} 19... Nxe7 {[%clk 0:02:37.5]}
20. Qg5 {[%clk 0:02:20]} 20... Rg8 {[%clk 0:02:32.5]} 21. h6 {[%clk 0:02:17.8]}
21... g6 {[%clk 0:02:33.8]} 22. f4 {[%clk 0:02:05.6]} 22... a4 {[%clk
0:02:34.8]} 23. Rh3 {[%clk 0:02:02.3]} 23... Qc7 {[%clk 0:02:23.8]} 24. Bd3
{[%clk 0:01:51.7]} 24... Kf8 {[%clk 0:02:22.8]} 25. Qf6 {[%clk 0:01:49.1]} 25...
Qc5 {[%clk 0:01:51.3]} 26. Nf3 {[%clk 0:01:45.9]} 26... b3 {[%clk 0:01:24]} 27.
cxb3 {[%clk 0:01:38.2]} 27... Ke8 {[%clk 0:01:11.8]} 28. Ng5 {[%clk 0:01:34.8]}
28... Rf8 {[%clk 0:01:12]} 29. Nxh7 {[%clk 0:01:29.1]} 29... axb3 {[%clk
0:01:13]} 30. Nxf8 {[%clk 0:01:12.6]} 30... Ba4 {[%clk 0:01:05.3]} 31. Ka1
{[%clk 0:00:54.6]} 31... bxa2 {[%clk 0:00:43.3]} 32. Rg1 {[%clk 0:00:25.8]}
32... Qxg1+ {[%clk 0:00:43.1]} 33. Kxa2 {[%clk 0:00:24.3]} 33... Ra8 {[%clk
0:00:43.7]} 34. Ba6 {[%clk 0:00:17.9]} 34... Rxa6 {[%clk 0:00:43]} 35. h7 {[%clk
0:00:18.1]} 35... Bc2+ {[%clk 0:00:42.1]} 36. Ra3 {[%clk 0:00:17.2]} 36... Qb1#
{[%clk 0:00:43.3]} 0-1

[Event "*** Qualifier 4: Titled Tuesday 3|2 Blitz"]
[Site "Chess.com"]
[Date "2017.04.25"]
[Round "10"]
[White "ruvat"]
[Black "nonscitis"]
[Result "0-1"]
[WhiteElo "2224"]
[BlackElo "2342"]
[TimeControl "180+2"]
[EndTime "15:12:51 PDT"]
[Termination "nonscitis won on time"]

1. d4 {[%clk 0:03:02]} 1... Nf6 {[%clk 0:03:00.1]} 2. c4 {[%clk 0:02:57.4]} 2...
e6 {[%clk 0:03:01.2]} 3. g3 {[%clk 0:02:57.1]} 3... d5 {[%clk 0:03:00.2]} 4. Nf3
{[%clk 0:02:54.4]} 4... dxc4 {[%clk 0:02:59.8]} 5. Bg2 {[%clk 0:02:55.2]} 5...
Be7 {[%clk 0:03:00.2]} 6. O-O {[%clk 0:02:55.3]} 6... O-O {[%clk 0:03:01.7]} 7.
Ne5 {[%clk 0:02:54.9]} 7... Nc6 {[%clk 0:03:00.7]} 8. Nxc6 {[%clk 0:02:55.3]}
8... bxc6 {[%clk 0:03:01.5]} 9. Na3 {[%clk 0:02:56.3]} 9... Ba6 {[%clk
0:02:58.9]} 10. Qa4 {[%clk 0:02:45.6]} 10... Bxa3 {[%clk 0:02:56.1]} 11. Qxa6
{[%clk 0:02:30.4]} 11... Be7 {[%clk 0:02:49.9]} 12. Bxc6 {[%clk 0:02:18.9]}
12... Rb8 {[%clk 0:02:48.8]} 13. Qxc4 {[%clk 0:02:17.8]} 13... Rb4 {[%clk
0:02:47.6]} 14. Qc3 {[%clk 0:02:06.3]} 14... Rxd4 {[%clk 0:02:47.3]} 15. Be3
{[%clk 0:02:02.6]} 15... Rd6 {[%clk 0:02:33.5]} 16. Bxa7 {[%clk 0:02:01.7]}
16... Nd5 {[%clk 0:02:33.5]} 17. Qc4 {[%clk 0:01:34.8]} 17... Nb6 {[%clk
0:02:28]} 18. Bxb6 {[%clk 0:01:23.4]} 18... cxb6 {[%clk 0:02:27.9]} 19. Bf3
{[%clk 0:01:23.6]} 19... Bf6 {[%clk 0:02:25.2]} 20. Rab1 {[%clk 0:01:16]} 20...
Rd2 {[%clk 0:02:24.7]} 21. Qb4 {[%clk 0:01:10.1]} 21... Rc2 {[%clk 0:02:19.4]}
22. Rfd1 {[%clk 0:01:07.2]} 22... Qc7 {[%clk 0:02:09.8]} 23. a4 {[%clk 0:01:07]}
23... g6 {[%clk 0:02:06.6]} 24. b3 {[%clk 0:01:02.4]} 24... Rc8 {[%clk
0:02:03.4]} 25. e3 {[%clk 0:00:59.9]} 25... Ra2 {[%clk 0:01:59.2]} 26. Rd2
{[%clk 0:00:35.6]} 26... Bc3 {[%clk 0:01:43]} 27. Qxc3 {[%clk 0:00:34.6]} 27...
Qxc3 {[%clk 0:01:42.9]} 28. Rxa2 {[%clk 0:00:36.2]} 28... Rd8 {[%clk 0:01:42.8]}
29. Be4 {[%clk 0:00:25.2]} 29... f5 {[%clk 0:01:39]} 30. Rc2 {[%clk 0:00:24]}
30... Qb4 {[%clk 0:01:35.5]} 31. Bf3 {[%clk 0:00:23.9]} 31... Kg7 {[%clk
0:01:26.1]} 32. h4 {[%clk 0:00:19.5]} 32... h5 {[%clk 0:01:26.2]} 33. Rc4 {[%clk
0:00:15.1]} 33... Qa3 {[%clk 0:01:18.7]} 34. Rc6 {[%clk 0:00:09]} 34... Qa2
{[%clk 0:01:03.1]} 35. Rf1 {[%clk 0:00:04.7]} 35... Qxb3 {[%clk 0:01:01]} 36.
Kg2 {[%clk 0:00:04.5]} 36... Rd2 {[%clk 0:00:58.9]} 37. Rc7+ {[%clk 0:00:02.1]}
37... Kf6 {[%clk 0:00:58.9]} 38. Ra7 {[%clk 0:00:02.5]} 38... Qxe3 {[%clk
0:00:57.2]} 0-1